[Event "GrandPrix_29.05"]
[Site "Chess.com"]
[Date "2020.05.29"]
[Round "8"]
[White "WildBizon"]
[Black "Mesropov_Konstantin"]
[Result "0-1"]
[WhiteElo "2120"]
[BlackElo "2357"]
[TimeControl "600+2"]
[EndTime "12:54:46 PDT"]
[Termination "Mesropov_Konstantin won by resignation"]

1. e4 {[%clk 0:10:01.9]} 1... e6 {[%clk 0:09:57.8]} 2. d4 {[%clk 0:10:02.5]}
2... d5 {[%clk 0:09:57.8]} 3. Nc3 {[%clk 0:10:03.1]} 3... h6 {[%clk 0:09:57.8]}
4. exd5 {[%clk 0:09:54.6]} 4... exd5 {[%clk 0:09:57.5]} 5. Bd3 {[%clk
0:09:56.2]} 5... Nf6 {[%clk 0:09:48.5]} 6. h3 {[%clk 0:09:49.3]} 6... Bd6 {[%clk
0:09:39.5]} 7. Nge2 {[%clk 0:09:49]} 7... O-O {[%clk 0:09:31.1]} 8. O-O {[%clk
0:09:49.9]} 8... Nc6 {[%clk 0:09:13.8]} 9. a3 {[%clk 0:09:41.5]} 9... a6 {[%clk
0:09:03.9]} 10. Be3 {[%clk 0:09:39.5]} 10... Ne7 {[%clk 0:08:49.3]} 11. Ng3
{[%clk 0:09:38.6]} 11... c5 {[%clk 0:07:33]} 12. Qf3 {[%clk 0:09:05.7]} 12...
Bxg3 {[%clk 0:06:54.6]} 13. fxg3 {[%clk 0:09:00.4]} 13... c4 {[%clk 0:06:47.8]}
14. Be2 {[%clk 0:09:01.6]} 14... Bf5 {[%clk 0:06:39.9]} 15. g4 {[%clk 0:08:51]}
15... Bxc2 {[%clk 0:06:38.7]} 16. Bxh6 {[%clk 0:08:51.8]} 16... Ne4 {[%clk
0:06:29.6]} 17. Be3 {[%clk 0:08:46.1]} 17... Qb6 {[%clk 0:06:03.5]} 18. Nd1
{[%clk 0:08:23.2]} 18... f5 {[%clk 0:05:41.7]} 19. Rc1 {[%clk 0:08:12.5]} 19...
Bd3 {[%clk 0:05:13.3]} 20. Bxd3 {[%clk 0:07:50.4]} 20... cxd3 {[%clk 0:05:13.2]}
21. g5 {[%clk 0:07:34.1]} 21... f4 {[%clk 0:04:59.3]} 22. Bf2 {[%clk 0:07:22.9]}
22... d2 {[%clk 0:04:53.8]} 23. Rc2 {[%clk 0:07:07.9]} 23... Qg6 {[%clk
0:04:34.3]} 24. Rc7 {[%clk 0:06:55.6]} 24... Qxg5 {[%clk 0:03:38.9]} 25. Nc3
{[%clk 0:06:51.5]} 25... Rae8 {[%clk 0:03:27.5]} 26. Rxb7 {[%clk 0:06:45.5]}
26... Ng6 {[%clk 0:03:11.3]} 27. Kh2 {[%clk 0:06:21.5]} 27... Nxf2 {[%clk
0:02:52.4]} 28. Rxf2 {[%clk 0:06:21]} 28... Qg3+ {[%clk 0:02:42.1]} 29. Qxg3
{[%clk 0:06:16.9]} 29... fxg3+ {[%clk 0:02:43]} 30. Kxg3 {[%clk 0:06:18.8]}
30... Re3+ {[%clk 0:02:41]} 31. Rf3 {[%clk 0:06:13.3]} 31... Rfxf3+ {[%clk
0:02:40.9]} 32. gxf3 {[%clk 0:06:14]} 32... Rxc3 {[%clk 0:02:41.3]} 0-1

[Event "GrandPrix_29.05"]
[Site "Chess.com"]
[Date "2020.05.29"]
[Round "8"]
[White "kirillshevchenko"]
[Black "OK97"]
[Result "1-0"]
[WhiteElo "2750"]
[BlackElo "2516"]
[TimeControl "600+2"]
[EndTime "12:55:16 PDT"]
[Termination "kirillshevchenko won by resignation"]

1. e4 {[%clk 0:10:01.8]} 1... c5 {[%clk 0:09:52]} 2. Nf3 {[%clk 0:10:01.4]} 2...
d6 {[%clk 0:09:52.9]} 3. d4 {[%clk 0:10:01.1]} 3... cxd4 {[%clk 0:09:53.6]} 4.
Nxd4 {[%clk 0:10:03]} 4... Nf6 {[%clk 0:09:54.9]} 5. Nc3 {[%clk 0:10:04.1]} 5...
Nc6 {[%clk 0:09:53.6]} 6. Bg5 {[%clk 0:10:05]} 6... e6 {[%clk 0:09:53.5]} 7. Qd3
{[%clk 0:10:06.1]} 7... a6 {[%clk 0:09:53.3]} 8. Nxc6 {[%clk 0:10:05.6]} 8...
bxc6 {[%clk 0:09:53.1]} 9. O-O-O {[%clk 0:10:07.5]} 9... Be7 {[%clk 0:09:38.1]}
10. Bxf6 {[%clk 0:09:34.4]} 10... gxf6 {[%clk 0:09:36.6]} 11. f4 {[%clk
0:09:22.1]} 11... Qc7 {[%clk 0:09:13]} 12. f5 {[%clk 0:08:48.7]} 12... d5 {[%clk
0:08:11.1]} 13. Be2 {[%clk 0:08:30]} 13... Bb7 {[%clk 0:06:51.9]} 14. Bh5 {[%clk
0:07:56.6]} 14... Qf4+ {[%clk 0:04:59.4]} 15. Kb1 {[%clk 0:07:56.2]} 15... Qg5
{[%clk 0:04:54.2]} 16. Qh3 {[%clk 0:07:31.9]} 16... e5 {[%clk 0:03:46.1]} 17.
exd5 {[%clk 0:07:24.6]} 17... Rd8 {[%clk 0:02:50.6]} 18. d6 {[%clk 0:07:16.7]}
18... Bf8 {[%clk 0:00:52.2]} 19. Ne4 {[%clk 0:07:15.1]} 19... Qh6 {[%clk
0:00:53.1]} 20. Qb3 {[%clk 0:07:06.3]} 20... Rd7 {[%clk 0:00:54.2]} 21. Bxf7+
{[%clk 0:06:59.2]} 1-0

[Event "GrandPrix_29.05"]
[Site "Chess.com"]
[Date "2020.05.29"]
[Round "8"]
[White "RovenVogel"]
[Black "Salnaa"]
[Result "1-0"]
[WhiteElo "2308"]
[BlackElo "2165"]
[TimeControl "600+2"]
[EndTime "12:55:53 PDT"]
[Termination "RovenVogel won by resignation"]

1. d4 {[%clk 0:10:01.3]} 1... d5 {[%clk 0:10:00.7]} 2. c4 {[%clk 0:09:50.8]}
2... c6 {[%clk 0:10:01.4]} 3. Nc3 {[%clk 0:09:47.8]} 3... Nf6 {[%clk 0:10:01.9]}
4. cxd5 {[%clk 0:09:29.5]} 4... cxd5 {[%clk 0:10:02.6]} 5. Bf4 {[%clk
0:09:30.8]} 5... Nc6 {[%clk 0:09:48.1]} 6. e3 {[%clk 0:09:30.5]} 6... a6 {[%clk
0:09:29.8]} 7. Bd3 {[%clk 0:09:23.5]} 7... Bg4 {[%clk 0:09:22.9]} 8. Nge2 {[%clk
0:09:17.9]} 8... Bxe2 {[%clk 0:09:23.1]} 9. Qxe2 {[%clk 0:09:12.5]} 9... e6
{[%clk 0:09:23.7]} 10. O-O {[%clk 0:09:11.5]} 10... Bd6 {[%clk 0:09:24.3]} 11.
Bg5 {[%clk 0:09:08.3]} 11... h6 {[%clk 0:09:22.5]} 12. Bh4 {[%clk 0:09:07.8]}
12... O-O {[%clk 0:09:21.9]} 13. Rac1 {[%clk 0:09:07.5]} 13... Rc8 {[%clk
0:08:20.4]} 14. Bb1 {[%clk 0:08:31.3]} 14... b5 {[%clk 0:07:57.8]} 15. Qd3
{[%clk 0:08:19.7]} 15... Nb4 {[%clk 0:07:22.5]} 16. Qe2 {[%clk 0:07:43.6]} 16...
Be7 {[%clk 0:07:00.6]} 17. a3 {[%clk 0:07:24]} 17... Nc6 {[%clk 0:07:00.3]} 18.
Qd3 {[%clk 0:06:56.9]} 18... Re8 {[%clk 0:06:54.4]} 19. Bxf6 {[%clk 0:06:42.9]}
19... Bxf6 {[%clk 0:06:56.3]} 20. Qh7+ {[%clk 0:06:44.4]} 20... Kf8 {[%clk
0:06:56.7]} 21. Ne2 {[%clk 0:06:46.3]} 21... Ke7 {[%clk 0:06:26.7]} 22. Rc5
{[%clk 0:06:29.3]} 22... Na5 {[%clk 0:05:44.9]} 23. Rfc1 {[%clk 0:06:21.1]}
23... Rxc5 {[%clk 0:05:36.7]} 24. Rxc5 {[%clk 0:06:20.7]} 24... Nb7 {[%clk
0:05:20.8]} 25. Rc6 {[%clk 0:06:16.7]} 25... Qd7 {[%clk 0:04:21.7]} 26. Qc2
{[%clk 0:06:12.1]} 26... Kd8 {[%clk 0:03:01.6]} 27. Rxa6 {[%clk 0:06:06.3]}
27... Nd6 {[%clk 0:02:56.1]} 28. Qc5 {[%clk 0:05:45.3]} 28... Be7 {[%clk
0:02:24.8]} 29. Ra7 {[%clk 0:05:39.2]} 29... Nb7 {[%clk 0:02:01.5]} 30. Ra8+
{[%clk 0:05:33.7]} 1-0

[Event "GrandPrix_29.05"]
[Site "Chess.com"]
[Date "2020.05.29"]
[Round "8"]
[White "WoodlandMagic"]
[Black "jacky72"]
[Result "0-1"]
[WhiteElo "2070"]
[BlackElo "2206"]
[TimeControl "600+2"]
[EndTime "12:55:59 PDT"]
[Termination "jacky72 won by resignation"]

1. d4 {[%clk 0:09:51.5]} 1... Nf6 {[%clk 0:09:57.6]} 2. c4 {[%clk 0:09:50.3]}
2... g6 {[%clk 0:09:59.5]} 3. Nc3 {[%clk 0:09:49.3]} 3... Bg7 {[%clk 0:10:00.9]}
4. e4 {[%clk 0:09:49.5]} 4... O-O {[%clk 0:10:02.8]} 5. Be2 {[%clk 0:09:50.3]}
5... d6 {[%clk 0:10:04]} 6. Be3 {[%clk 0:09:51.5]} 6... Na6 {[%clk 0:10:04.4]}
7. h4 {[%clk 0:09:31.4]} 7... c5 {[%clk 0:09:56.4]} 8. d5 {[%clk 0:09:31.5]}
8... e6 {[%clk 0:09:57.4]} 9. g4 {[%clk 0:09:22.3]} 9... exd5 {[%clk 0:09:55.7]}
10. cxd5 {[%clk 0:09:16.1]} 10... b5 {[%clk 0:09:46.4]} 11. f3 {[%clk
0:08:02.8]} 11... b4 {[%clk 0:09:45.3]} 12. Na4 {[%clk 0:07:50.6]} 12... Nc7
{[%clk 0:09:38.4]} 13. Rc1 {[%clk 0:07:25.6]} 13... Re8 {[%clk 0:09:36]} 14. Qd2
{[%clk 0:06:45.3]} 14... Bxg4 {[%clk 0:09:20.5]} 15. fxg4 {[%clk 0:06:30.3]}
15... Nxe4 {[%clk 0:09:20.1]} 16. Qd3 {[%clk 0:06:30.3]} 16... Qd7 {[%clk
0:08:51.5]} 17. b3 {[%clk 0:06:26]} 17... Re7 {[%clk 0:08:52.9]} 18. Rh3 {[%clk
0:06:01.1]} 18... Rae8 {[%clk 0:08:49.3]} 19. Kf1 {[%clk 0:05:44.9]} 19... f5
{[%clk 0:08:31.6]} 20. gxf5 {[%clk 0:05:07.5]} 20... Qxf5+ {[%clk 0:08:30.9]}
21. Kg2 {[%clk 0:05:08.5]} 21... Nc3 {[%clk 0:07:34.6]} 22. Qxf5 {[%clk
0:03:28.3]} 22... gxf5 {[%clk 0:07:36.5]} 23. Nxc3 {[%clk 0:02:47]} 23... bxc3
{[%clk 0:07:38.4]} 24. Bh5 {[%clk 0:02:22.8]} 24... Rxe3 {[%clk 0:07:34.1]} 25.
Bxe8 {[%clk 0:02:23.5]} 25... Rxe8 {[%clk 0:07:28]} 26. Rd3 {[%clk 0:02:14.8]}
26... Bd4 {[%clk 0:07:18.1]} 27. Nf3 {[%clk 0:02:09]} 27... Nxd5 {[%clk
0:07:10.5]} 28. Rxd4 {[%clk 0:01:21.6]} 28... cxd4 {[%clk 0:06:55.4]} 29. Nxd4
{[%clk 0:01:23.5]} 29... f4 {[%clk 0:06:42.8]} 30. Nf5 {[%clk 0:01:14.7]} 30...
Ne3+ {[%clk 0:06:27.6]} 31. Nxe3 {[%clk 0:01:13.4]} 31... Rxe3 {[%clk
0:06:29.5]} 0-1

[Event "GrandPrix_29.05"]
[Site "Chess.com"]
[Date "2020.05.29"]
[Round "8"]
[White "viktorko131"]
[Black "guylevin1"]
[Result "0-1"]
[WhiteElo "2147"]
[BlackElo "2118"]
[TimeControl "600+2"]
[EndTime "12:56:05 PDT"]
[Termination "guylevin1 won on time"]

1. e4 {[%clk 0:10:01.9]} 1... c5 {[%clk 0:09:57.9]} 2. Nf3 {[%clk 0:10:02.7]}
2... d6 {[%clk 0:09:59.2]} 3. d4 {[%clk 0:10:03.7]} 3... cxd4 {[%clk 0:10:00.6]}
4. Nxd4 {[%clk 0:10:05.4]} 4... Nf6 {[%clk 0:10:01.7]} 5. Nc3 {[%clk 0:10:06.4]}
5... a6 {[%clk 0:09:59.2]} 6. Be3 {[%clk 0:10:07.1]} 6... e5 {[%clk 0:09:59.9]}
7. Nb3 {[%clk 0:10:07.6]} 7... Be7 {[%clk 0:10:01.2]} 8. Qd2 {[%clk 0:10:03.7]}
8... O-O {[%clk 0:10:01.5]} 9. O-O-O {[%clk 0:10:03.9]} 9... Be6 {[%clk
0:09:52.9]} 10. f4 {[%clk 0:09:12.8]} 10... Ng4 {[%clk 0:09:52.3]} 11. g3 {[%clk
0:09:12.8]} 11... Nd7 {[%clk 0:09:40.9]} 12. Bg1 {[%clk 0:08:42.2]} 12... b5
{[%clk 0:09:31.3]} 13. Nd5 {[%clk 0:07:44.3]} 13... Bxd5 {[%clk 0:09:16.7]} 14.
Qxd5 {[%clk 0:07:43.4]} 14... Qc7 {[%clk 0:08:57.8]} 15. Qd2 {[%clk 0:05:41.2]}
15... Ngf6 {[%clk 0:08:36.7]} 16. Qg2 {[%clk 0:03:43.1]} 16... a5 {[%clk
0:08:12.8]} 17. Bxb5 {[%clk 0:03:33.6]} 17... a4 {[%clk 0:08:13.3]} 18. Nd2
{[%clk 0:02:47.8]} 18... a3 {[%clk 0:08:03.3]} 19. Nb3 {[%clk 0:02:12.3]} 19...
axb2+ {[%clk 0:07:57.4]} 20. Kxb2 {[%clk 0:02:13.5]} 20... Rfb8 {[%clk
0:07:27.9]} 21. a4 {[%clk 0:02:05.6]} 21... Nc5 {[%clk 0:07:22.7]} 22. Bxc5
{[%clk 0:00:39.3]} 22... dxc5 {[%clk 0:07:24.6]} 23. Qe2 {[%clk 0:00:17.6]}
23... exf4 {[%clk 0:07:24.6]} 24. gxf4 {[%clk 0:00:05.3]} 24... Qxf4 {[%clk
0:07:20.2]} 25. e5 {[%clk 0:00:06.9]} 25... Ne4 {[%clk 0:07:16.2]} 26. Rhe1
{[%clk 0:00:02.3]} 26... Qxe5+ {[%clk 0:07:14.4]} 27. Kc1 {[%clk 0:00:03.8]}
27... Bg5+ {[%clk 0:07:14.8]} 28. Kb1 {[%clk 0:00:02.6]} 28... Nc3+ {[%clk
0:07:14.9]} 0-1

[Event "GrandPrix_29.05"]
[Site "Chess.com"]
[Date "2020.05.29"]
[Round "8"]
[White "Vnebo"]
[Black "Frozygul"]
[Result "1/2-1/2"]
[WhiteElo "2058"]
[BlackElo "2122"]
[TimeControl "600+2"]
[EndTime "12:56:06 PDT"]
[Termination "Game drawn by agreement"]

1. e4 {[%clk 0:10:01.9]} 1... Nf6 {[%clk 0:10:00.9]} 2. e5 {[%clk 0:09:58.9]}
2... Nd5 {[%clk 0:10:02.1]} 3. d4 {[%clk 0:10:00]} 3... d6 {[%clk 0:10:02.9]} 4.
Nf3 {[%clk 0:10:00.9]} 4... dxe5 {[%clk 0:10:04.2]} 5. Nxe5 {[%clk 0:10:02.8]}
5... c6 {[%clk 0:10:05.7]} 6. h3 {[%clk 0:10:04]} 6... g6 {[%clk 0:10:06.8]} 7.
c4 {[%clk 0:09:46.4]} 7... Nb4 {[%clk 0:10:03.2]} 8. Nf3 {[%clk 0:09:40]} 8...
Bf5 {[%clk 0:10:03]} 9. Na3 {[%clk 0:09:33.9]} 9... Bg7 {[%clk 0:09:59.8]} 10.
Be3 {[%clk 0:09:31.5]} 10... O-O {[%clk 0:09:55.7]} 11. Be2 {[%clk 0:09:31.7]}
11... c5 {[%clk 0:09:52.9]} 12. Qd2 {[%clk 0:09:16.4]} 12... N8c6 {[%clk
0:09:34.9]} 13. d5 {[%clk 0:09:10]} 13... Qa5 {[%clk 0:09:20]} 14. O-O {[%clk
0:08:33.9]} 14... Ne5 {[%clk 0:09:14.1]} 15. Nxe5 {[%clk 0:08:24.6]} 15... Bxe5
{[%clk 0:09:16]} 16. Nb5 {[%clk 0:08:23.1]} 16... a6 {[%clk 0:09:12.9]} 17. Bxc5
{[%clk 0:08:00.1]} 17... axb5 {[%clk 0:09:13.8]} 18. Bxb4 {[%clk 0:07:58.6]}
18... Qc7 {[%clk 0:09:14.3]} 19. c5 {[%clk 0:07:49.5]} 19... Bh2+ {[%clk
0:09:07.7]} 20. Kh1 {[%clk 0:07:49.5]} 20... Bf4 {[%clk 0:09:09.6]} 21. Qc3
{[%clk 0:07:38.4]} 21... Be5 {[%clk 0:09:10.2]} 22. Qb3 {[%clk 0:07:33.3]} 22...
Bd4 {[%clk 0:08:57.9]} 23. Rac1 {[%clk 0:07:10.4]} 23... Qf4 {[%clk 0:08:38.5]}
24. a3 {[%clk 0:06:21]} 24... Be4 {[%clk 0:08:00.6]} 25. Rcd1 {[%clk 0:05:26.7]}
25... Be5 {[%clk 0:07:59]} 26. Qg3 {[%clk 0:05:23.3]} 26... Qxg3 {[%clk
0:07:59.3]} 27. fxg3 {[%clk 0:05:22.9]} 27... Bxb2 {[%clk 0:08:01.2]} 28. Bf3
{[%clk 0:04:40.6]} 28... Bxf3 {[%clk 0:07:52.5]} 29. Rxf3 {[%clk 0:04:40.8]}
29... Rfd8 {[%clk 0:07:49.9]} 30. d6 {[%clk 0:04:27]} 30... exd6 {[%clk
0:06:48.9]} 31. cxd6 {[%clk 0:04:25.9]} 31... Rd7 {[%clk 0:06:49.4]} 32. Rb3
{[%clk 0:03:48.4]} 32... Be5 {[%clk 0:06:45.4]} 33. Rd5 {[%clk 0:03:47.2]} 33...
f6 {[%clk 0:06:40.3]} 34. Rxb5 {[%clk 0:03:42.3]} 34... Rc8 {[%clk 0:06:28.3]}
35. Rc5 {[%clk 0:03:32.8]} 35... Rxc5 {[%clk 0:06:23.4]} 36. Bxc5 {[%clk
0:03:33.1]} 36... Kf7 {[%clk 0:06:25.3]} 37. g4 {[%clk 0:03:00]} 37... Ke6
{[%clk 0:06:27.2]} 38. Rb6 {[%clk 0:02:56.1]} 38... Kd5 {[%clk 0:06:22.2]}
1/2-1/2

[Event "GrandPrix_29.05"]
[Site "Chess.com"]
[Date "2020.05.29"]
[Round "8"]
[White "Rikikits"]
[Black "Igor_Lysyj"]
[Result "1/2-1/2"]
[WhiteElo "2730"]
[BlackElo "2650"]
[TimeControl "600+2"]
[EndTime "12:56:10 PDT"]
[Termination "Game drawn by repetition"]

1. e4 {[%clk 0:10:01.9]} 1... e5 {[%clk 0:10:00.4]} 2. Nf3 {[%clk 0:10:02.3]}
2... Nc6 {[%clk 0:10:00.6]} 3. Bb5 {[%clk 0:10:03.8]} 3... Nf6 {[%clk
0:10:00.9]} 4. O-O {[%clk 0:10:04.7]} 4... Nxe4 {[%clk 0:10:01.3]} 5. Re1 {[%clk
0:10:04.9]} 5... Nd6 {[%clk 0:10:01.3]} 6. Nxe5 {[%clk 0:10:06.2]} 6... Be7
{[%clk 0:10:00.2]} 7. Bf1 {[%clk 0:10:05.1]} 7... Nxe5 {[%clk 0:09:59.6]} 8.
Rxe5 {[%clk 0:10:07]} 8... O-O {[%clk 0:09:59.6]} 9. d4 {[%clk 0:10:07.2]} 9...
Ne8 {[%clk 0:09:59.9]} 10. Nc3 {[%clk 0:10:04.5]} 10... Bf6 {[%clk 0:09:53]} 11.
Re2 {[%clk 0:09:19]} 11... d5 {[%clk 0:09:51.3]} 12. Bf4 {[%clk 0:09:19.8]}
12... c6 {[%clk 0:09:46.6]} 13. Be5 {[%clk 0:08:57.6]} 13... Bg4 {[%clk
0:09:24.5]} 14. f3 {[%clk 0:08:56.1]} 14... Bf5 {[%clk 0:09:24.4]} 15. Qd2
{[%clk 0:08:46]} 15... Nc7 {[%clk 0:08:38.6]} 16. Rae1 {[%clk 0:08:19.1]} 16...
Bg6 {[%clk 0:08:00]} 17. Nd1 {[%clk 0:07:51.9]} 17... Ne6 {[%clk 0:07:49.9]} 18.
Bxf6 {[%clk 0:07:33.1]} 18... Qxf6 {[%clk 0:07:50]} 19. Re5 {[%clk 0:07:10.8]}
19... Qf4 {[%clk 0:05:48.7]} 20. Qxf4 {[%clk 0:07:07.5]} 20... Nxf4 {[%clk
0:05:49.7]} 21. g3 {[%clk 0:06:50]} 21... Ne6 {[%clk 0:05:44.9]} 22. c3 {[%clk
0:06:49.6]} 22... Rfe8 {[%clk 0:05:33.5]} 23. Kf2 {[%clk 0:06:26.8]} 23... Kf8
{[%clk 0:05:30]} 24. h4 {[%clk 0:06:20.9]} 24... h6 {[%clk 0:05:21.6]} 25. Bh3
{[%clk 0:05:34.1]} 25... Nc7 {[%clk 0:05:20.3]} 26. Rxe8+ {[%clk 0:05:28.8]}
26... Rxe8 {[%clk 0:05:18.4]} 27. Rxe8+ {[%clk 0:05:29.2]} 27... Nxe8 {[%clk
0:05:16.7]} 28. Ne3 {[%clk 0:05:25.2]} 28... Nd6 {[%clk 0:05:16.8]} 29. Ke1
{[%clk 0:05:13.5]} 29... Bb1 {[%clk 0:05:07.1]} 30. a3 {[%clk 0:05:13.3]} 30...
g5 {[%clk 0:05:03.7]} 31. hxg5 {[%clk 0:05:09.9]} 31... hxg5 {[%clk 0:05:04.4]}
32. Bf1 {[%clk 0:05:06]} 32... Ke7 {[%clk 0:04:58.1]} 33. Kd2 {[%clk 0:05:06.8]}
33... Bf5 {[%clk 0:04:45.1]} 34. Bd3 {[%clk 0:05:02.9]} 34... Bxd3 {[%clk
0:04:23.9]} 35. Kxd3 {[%clk 0:05:04.8]} 35... f5 {[%clk 0:04:24.4]} 36. b3
{[%clk 0:04:49.8]} 36... Ke6 {[%clk 0:04:10]} 37. c4 {[%clk 0:04:46]} 37... f4
{[%clk 0:04:03.5]} 38. cxd5+ {[%clk 0:04:45.2]} 38... cxd5 {[%clk 0:04:04]} 39.
gxf4 {[%clk 0:04:47.1]} 39... gxf4 {[%clk 0:04:04.8]} 40. Nd1 {[%clk 0:04:43.2]}
40... Nf5 {[%clk 0:03:55.8]} 41. Nc3 {[%clk 0:04:42.5]} 41... Nh4 {[%clk
0:03:47.5]} 42. Ke2 {[%clk 0:04:42.2]} 42... Nf5 {[%clk 0:03:39]} 43. Kd3 {[%clk
0:04:42.3]} 43... Nh4 {[%clk 0:03:37]} 44. Ke2 {[%clk 0:04:43.6]} 44... Nf5
{[%clk 0:03:38]} 45. Kd3 {[%clk 0:04:44.9]} 1/2-1/2

[Event "GrandPrix_29.05"]
[Site "Chess.com"]
[Date "2020.05.29"]
[Round "8"]
[White "dosto07"]
[Black "gummigisla"]
[Result "0-1"]
[WhiteElo "1859"]
[BlackElo "2011"]
[TimeControl "600+2"]
[EndTime "12:56:14 PDT"]
[Termination "gummigisla won by checkmate"]

1. e4 {[%clk 0:09:59.8]} 1... g6 {[%clk 0:09:58.5]} 2. d4 {[%clk 0:09:49.1]}
2... Bg7 {[%clk 0:09:59.7]} 3. Nc3 {[%clk 0:09:49.1]} 3... a6 {[%clk 0:09:56.2]}
4. a4 {[%clk 0:09:48.6]} 4... b6 {[%clk 0:09:56.6]} 5. Nf3 {[%clk 0:09:48.3]}
5... Bb7 {[%clk 0:09:57.6]} 6. Bc4 {[%clk 0:09:39.8]} 6... e6 {[%clk 0:09:54]}
7. Bg5 {[%clk 0:08:56.8]} 7... Ne7 {[%clk 0:09:49.3]} 8. Qd2 {[%clk 0:08:47.1]}
8... h6 {[%clk 0:09:49.1]} 9. Bh4 {[%clk 0:08:45.5]} 9... d6 {[%clk 0:09:48.8]}
10. O-O {[%clk 0:08:23.2]} 10... Nd7 {[%clk 0:09:46.7]} 11. Rad1 {[%clk
0:07:47.6]} 11... g5 {[%clk 0:09:34.2]} 12. Bg3 {[%clk 0:07:46.6]} 12... Ng6
{[%clk 0:09:35.6]} 13. h3 {[%clk 0:06:58.3]} 13... Nf6 {[%clk 0:09:23.8]} 14. e5
{[%clk 0:06:45.8]} 14... Nh5 {[%clk 0:09:22.1]} 15. exd6 {[%clk 0:06:38.7]}
15... cxd6 {[%clk 0:09:20.3]} 16. d5 {[%clk 0:06:00.8]} 16... e5 {[%clk
0:09:09.2]} 17. Bd3 {[%clk 0:05:28.6]} 17... Ngf4 {[%clk 0:08:53.4]} 18. Bxf4
{[%clk 0:05:22.9]} 18... Nxf4 {[%clk 0:08:51.9]} 19. Bf5 {[%clk 0:05:15.1]}
19... Bc8 {[%clk 0:08:49.3]} 20. Bxc8 {[%clk 0:05:13.5]} 20... Rxc8 {[%clk
0:08:46.5]} 21. Ne2 {[%clk 0:05:12.8]} 21... O-O {[%clk 0:08:38.9]} 22. Nxf4
{[%clk 0:05:11.1]} 22... gxf4 {[%clk 0:08:35]} 23. c3 {[%clk 0:04:58.1]} 23...
f5 {[%clk 0:08:33.6]} 24. Qe2 {[%clk 0:04:55.2]} 24... a5 {[%clk 0:08:19.9]} 25.
Kh2 {[%clk 0:04:28.2]} 25... e4 {[%clk 0:07:57.2]} 26. Nd4 {[%clk 0:04:23.2]}
26... f3 {[%clk 0:07:43.3]} 27. Qe3 {[%clk 0:04:03.3]} 27... Be5+ {[%clk
0:07:09.8]} 28. g3 {[%clk 0:03:58]} 28... Qf6 {[%clk 0:07:09.4]} 29. Nc6 {[%clk
0:03:19.6]} 29... h5 {[%clk 0:06:40.3]} 30. Rg1 {[%clk 0:03:15.2]} 30... Kh7
{[%clk 0:06:27.1]} 31. Qxb6 {[%clk 0:03:06.4]} 31... Rf7 {[%clk 0:06:19.2]} 32.
Nxe5 {[%clk 0:02:43.3]} 32... Qxe5 {[%clk 0:06:16.2]} 33. Qd4 {[%clk 0:02:43.8]}
33... Qxd4 {[%clk 0:06:15.8]} 34. Rxd4 {[%clk 0:02:44.6]} 34... Rb8 {[%clk
0:06:16.6]} 35. Rd2 {[%clk 0:02:29.1]} 35... Kg6 {[%clk 0:06:11.9]} 36. g4
{[%clk 0:02:29.9]} 36... hxg4 {[%clk 0:06:10.4]} 37. hxg4 {[%clk 0:02:29.3]}
37... Rh7+ {[%clk 0:06:05]} 38. Kg3 {[%clk 0:02:30]} 38... Kg5 {[%clk
0:06:01.6]} 39. gxf5 {[%clk 0:02:28.8]} 39... Rg8 {[%clk 0:06:01.9]} 40. f6
{[%clk 0:01:56.1]} 40... Kf5# {[%clk 0:06:00.2]} 0-1

[Event "GrandPrix_29.05"]
[Site "Chess.com"]
[Date "2020.05.29"]
[Round "8"]
[White "BairaKovanova"]
[Black "fm_magua"]
[Result "0-1"]
[WhiteElo "2073"]
[BlackElo "1867"]
[TimeControl "600+2"]
[EndTime "12:56:15 PDT"]
[Termination "fm_magua won by resignation"]

1. e4 {[%clk 0:10:01.9]} 1... c5 {[%clk 0:09:57.3]} 2. Nf3 {[%clk 0:10:01.5]}
2... Nc6 {[%clk 0:09:58.1]} 3. Nc3 {[%clk 0:10:01.7]} 3... Nf6 {[%clk
0:09:58.8]} 4. g3 {[%clk 0:09:57.5]} 4... g6 {[%clk 0:09:59.3]} 5. Bg2 {[%clk
0:09:58]} 5... Bg7 {[%clk 0:10:00.7]} 6. d3 {[%clk 0:09:57.3]} 6... O-O {[%clk
0:10:01.6]} 7. Be3 {[%clk 0:09:57.2]} 7... d6 {[%clk 0:10:01.8]} 8. h3 {[%clk
0:09:57.5]} 8... Rb8 {[%clk 0:10:03.1]} 9. Qd2 {[%clk 0:09:58.1]} 9... b5 {[%clk
0:10:04.3]} 10. O-O {[%clk 0:09:58.7]} 10... b4 {[%clk 0:10:05]} 11. Nd1 {[%clk
0:09:49.9]} 11... e5 {[%clk 0:09:59.9]} 12. Bh6 {[%clk 0:09:28.8]} 12... Nd4
{[%clk 0:10:00.3]} 13. Bxg7 {[%clk 0:09:28.3]} 13... Nxf3+ {[%clk 0:10:01.3]}
14. Bxf3 {[%clk 0:09:27.9]} 14... Kxg7 {[%clk 0:10:03]} 15. Bg2 {[%clk
0:09:28.1]} 15... Ne8 {[%clk 0:10:04.2]} 16. Ne3 {[%clk 0:09:26.5]} 16... Nc7
{[%clk 0:10:05]} 17. f4 {[%clk 0:09:24.7]} 17... f6 {[%clk 0:10:03.9]} 18. h4
{[%clk 0:08:07.1]} 18... Nb5 {[%clk 0:10:00.5]} 19. f5 {[%clk 0:08:06.8]} 19...
Nd4 {[%clk 0:09:58.8]} 20. Ng4 {[%clk 0:08:03.9]} 20... gxf5 {[%clk 0:09:40.7]}
21. exf5 {[%clk 0:07:57.7]} 21... Bxf5 {[%clk 0:09:36.3]} 22. Qh6+ {[%clk
0:05:42.9]} 22... Kh8 {[%clk 0:09:34.1]} 23. Ne3 {[%clk 0:05:43.3]} 23... Be6
{[%clk 0:09:21.3]} 24. Rf2 {[%clk 0:05:01]} 24... Qe7 {[%clk 0:08:47.8]} 25.
Raf1 {[%clk 0:04:04.7]} 25... Qg7 {[%clk 0:08:47.1]} 26. Rxf6 {[%clk 0:03:25]}
26... Rxf6 {[%clk 0:08:47.5]} 27. Qxf6 {[%clk 0:03:23]} 27... Qxf6 {[%clk
0:08:48.4]} 28. Rxf6 {[%clk 0:03:23.3]} 28... Kg7 {[%clk 0:08:50]} 29. Rf1
{[%clk 0:03:21.4]} 29... Rf8 {[%clk 0:08:44.7]} 30. Rxf8 {[%clk 0:02:22.2]}
30... Kxf8 {[%clk 0:08:45.2]} 31. a3 {[%clk 0:01:59.8]} 31... b3 {[%clk
0:08:25.5]} 32. c3 {[%clk 0:01:56.1]} 32... Ne2+ {[%clk 0:08:26.5]} 33. Kf2
{[%clk 0:01:54.2]} 33... Nxc3 {[%clk 0:08:27.6]} 34. Ke1 {[%clk 0:01:17.5]}
34... Na4 {[%clk 0:08:28.1]} 35. Nd1 {[%clk 0:01:13.6]} 35... Bg4 {[%clk
0:08:25.6]} 36. Bd5 {[%clk 0:01:12.6]} 36... Bxd1 {[%clk 0:08:20.1]} 37. Kxd1
{[%clk 0:01:12.9]} 37... Nxb2+ {[%clk 0:08:10.4]} 38. Kd2 {[%clk 0:01:13.6]}
38... Na4 {[%clk 0:08:05.3]} 39. Bxb3 {[%clk 0:01:14]} 39... Nb6 {[%clk
0:08:06.6]} 40. a4 {[%clk 0:01:07.2]} 40... a5 {[%clk 0:08:07.3]} 41. Ke3 {[%clk
0:01:01]} 41... d5 {[%clk 0:08:04.4]} 42. Bd1 {[%clk 0:01:00.5]} 42... Ke7
{[%clk 0:08:02.4]} 43. Kf3 {[%clk 0:00:57.8]} 43... Kf6 {[%clk 0:07:50.9]} 44.
Kg4 {[%clk 0:00:58.8]} 44... c4 {[%clk 0:07:50]} 45. dxc4 {[%clk 0:00:58.3]}
45... Nxc4 {[%clk 0:07:51.3]} 46. Kh5 {[%clk 0:00:58.8]} 46... e4 {[%clk
0:07:51.7]} 47. g4 {[%clk 0:00:56.1]} 47... Kg7 {[%clk 0:07:48.7]} 48. g5 {[%clk
0:00:52.1]} 48... d4 {[%clk 0:07:47]} 49. Kg4 {[%clk 0:00:53.1]} 49... Ne3+
{[%clk 0:07:47.7]} 0-1